[Event "Cape Verde Championship 2019"]
[Site "Ribeira Brava"]
[Date "2019.12.06"]
[Round "1.2"]
[White "Fernandes, Luis De Pina"]
[Black "Monteiro, Antonio David Cabral"]
[Result "0-1"]
[ECO "B06"]
[WhiteElo "1641"]
[BlackElo "1779"]
[Annotator "NA RC"]
[PlyCount "85"]
[EventDate "2019.12.05"]
[EventType "tourn"]
[SourceTitle "playchess.com"]
[Source "ChessBase"]
[SourceQuality "1"]
[TimeControl "40/5400+30:1800+30"]

1. e4 {[%emt 0:00:02]} g6 {[%emt 0:00:00]} 2. d4 {[%emt 0:00:59]} Bg7 {[%emt 0:00:15]} 3. Nf3 {[%emt 0:00:30]} d6 {[%emt 0:00:43]} 4. Be3 {[%emt 0:02:40]} c5 {[%emt 0:01:46]} 5. c3 {[%emt 0:03:29]} b6 {[%emt 0:04:15]} 6. Bb5+ {[%emt 0:04:30]} Bd7 {[%emt 0:00:45]} 7. Bxd7+ {[%emt 0:00:48]} Nxd7 {[%emt 0:00:31]} 8. Nbd2 {[%emt 0:01:04]} Ngf6 {[%emt 0:00:40]} 9. h3 {[%emt 0:02:30]} O-O {[%emt 0:00:41]} 10. O-O {[%emt 0:02:43]} Qc7 {[%emt 0:05:42]} 11. Rc1 {[%emt 0:04:00]} Qb7 {[%emt 0:03:25]} 12. Qc2 {[%emt 0:04:37]} Rac8 {[%emt 0:02:50]} 13. d5 {[%emt 0:06:24]} b5 {[%emt 0:06:09]} 14. Rfe1 {[%emt 0:08:27]} a5 {[%emt 0:02:39]} 15. Bf4 {[%emt 0:05:30]} Rfe8 {[%emt 0:09:17]} 16. Nf1 {[%emt 0:03:44]} c4 {[%emt 0:02:01]} 17. b4 {[%emt 0:08:46]} axb4 {[%emt 0:06:55]} 18. cxb4 {[%emt 0:00:17]} Ra8 {[%emt 0:01:19]} 19. Re2 {[%emt 0:06:55]} Ra4 {[%emt 0:03:03]} 20. Bd2 {[%emt 0:06:07]} Rea8 {[%emt 0:02:57]} 21. Bc3 {[%emt 0:06:15]} Rxa2 {[%emt 0:06:04]} 22. Qd1 {[%emt 0:00:09]} Rxe2 {[%emt 0:03:03]} 23. Qxe2 {[%emt 0:00:02]} Nh5 {[%emt 0:03:18]} 24. Bxg7 {[%emt 0:00:35]} Kxg7 {[%emt 0:02:28]} 25. Qb2+ {[%emt 0:00:01]} Nhf6 {[%emt 0:00:38]} 26. Nd4 {[%emt 0:01:34]} Ne5 {[%emt 0:01:16]} 27. Rb1 {[%emt 0:03:52]} Nd3 {[%emt 0:09:05]} 28. Qc3 {[%emt 0:00:07]} Nxf2 {[%emt 0:04:04]} 29. Ng3 {[%emt 0:05:48]} Nd3 {[%emt 0:02:45]} 30. Rf1 {[%emt 0:06:32]} Qa7 {[%emt 0:03:35]} 31. Kh2 {[%emt 0:00:31]} Qd7 {[%emt 0:02:13]} 32. Ra1 {[%emt 0:03:20]} Rb8 {[%emt 0:02:18]} 33. Nc6 {[%emt 0:00:14]} Rc8 {[%emt 0:01:31]} 34. Ra7 {[%emt 0:00:14]} Rc7 {[%emt 0:00:39]} 35. Ra8 {[%emt 0:00:32]} h5 {[%emt 0:01:12]} 36. Rd8 {[%emt 0:00:12]} h4 {[%emt 0:00:39]} 37. Rxd7 {[%emt 0:00:27]} hxg3+ {[%emt 0:00:03]} 38. Kxg3 {[%emt 0:00:51]} Rxd7 {[%emt 0:02:16]} 39. Kf3 {[%emt 0:00:08]} Rc7 {[%emt 0:01:00]} 40. g4 {[%emt 0:00:20]} Kf8 {[%emt 0:00:03]} 41. Qa1 {[%emt 0:30:31]} Ke8 {[%emt 0:30:36]} 42. Qa8+ {[%emt 0:00:27]} Kd7 {[%emt 0:00:25]} 43. Qd8# {[%emt 0:04:46] Ke6} 0-1

[Event "Cape Verde Championship 2019"]
[Site "Ribeira Brava"]
[Date "2019.12.06"]
[Round "1.3"]
[White "Monteiro, Antonio"]
[Black "Barros, Arlindo"]
[Result "0-1"]
[ECO "B23"]
[WhiteElo "1775"]
[BlackElo "1628"]
[Annotator "NA RC"]
[PlyCount "82"]
[EventDate "2019.12.05"]
[EventType "tourn"]
[SourceTitle "playchess.com"]
[Source "ChessBase"]
[SourceQuality "1"]
[TimeControl "40/5400+30:1800+30"]

1. e4 {[%emt 0:00:00]} c5 {[%emt 0:00:00]} 2. Nc3 {[%emt 0:00:00]} d6 {[%emt 0:00:04]} 3. f4 {[%emt 0:00:04]} Nf6 {[%emt 0:01:39]} 4. Nf3 {[%emt 0:00:34]} e6 {[%emt 0:01:40]} 5. Be2 {[%emt 0:04:26]} Be7 {[%emt 0:01:35]} 6. O-O {[%emt 0:00:49]} O-O {[%emt 0:00:41]} 7. d3 {[%emt 0:01:17]} Nc6 {[%emt 0:04:08]} 8. Kh1 {[%emt 0:05:25]} a6 {[%emt 0:04:20]} 9. Be3 {[%emt 0:01:55]} b5 {[%emt 0:07:08]} 10. a3 {[%emt 0:02:08]} Bb7 {[%emt 1:13:45]} 11. Qe1 d5 {[%emt 0:00:00]} 12. e5 {[%emt 0:13:14]} Ng4 {[%emt 0:00:00]} 13. Bg1 {[%emt 0:06:08]} d4 {[%emt 0:00:00]} 14. Ne4 {[%emt 0:01:55]} Nh6 {[%emt 0:00:00]} 15. Nfg5 {[%emt 0:04:59]} Nf5 {[%emt 0:00:00]} 16. Bg4 {[%emt 0:05:19]} h6 {[%emt 0:00:00]} 17. Nf3 {[%emt 0:02:22]} Rc8 {[%emt 0:00:00]} 18. Bxf5 {[%emt 0:04:20]} exf5 {[%emt 0:00:00]} 19. Ned2 {[%emt 0:01:07]} Qd5 {[%emt 0:00:00]} 20. Qe2 {[%emt 0:06:08]} Nd8 {[%emt 0:00:00]} 21. Bf2 {[%emt 0:06:34]} Ne6 {[%emt 0:00:00]} 22. Bg3 {[%emt 0:05:00]} c4 {[%emt 0:00:00]} 23. Ne1 {[%emt 0:07:19]} Kh7 {[%emt 0:00:00]} 24. a4 {[%emt 0:04:42]} Rfd8 {[%emt 0:00:00]} 25. axb5 {[%emt 0:01:40]} axb5 {[%emt 0:00:00]} 26. Ra7 {[%emt 0:01:34]} Rc7 {[%emt 0:00:00]} 27. dxc4 {[%emt 0:01:48]} bxc4 {[%emt 0:00:00]} 28. Ra4 {[%emt 0:04:38]} d3 {[%emt 0:00:00]} 29. cxd3 {[%emt 0:01:11]} cxd3 {[%emt 0:00:00]} 30. Qd1 {[%emt 0:04:34]} Rdc8 {[%emt 0:00:00]} 31. Qb3 {[%emt 0:01:28]} Qxb3 {[%emt 0:01:11]} 32. Nxb3 {[%emt 0:00:01]} Rc1 {[%emt 0:01:24]} 33. Nxc1 {[%emt 0:02:32]} Rxc1 {[%emt 0:00:02]} 34. Kg1 {[%emt 0:00:39]} d2 {[%emt 0:00:01]} 35. Rc4 {[%emt 0:01:07]} d1=Q {[%emt 0:01:04]} 36. Rxc1 {[%emt 0:00:19]} Qxc1 {[%emt 0:00:04]} 37. Nd3 {[%emt 0:00:26]} Qc8 {[%emt 0:00:18]} 38. Rc1 {[%emt 0:00:26]} Qd7 {[%emt 0:00:23]} 39. Rd1 {[%emt 0:00:35]} Bc5+ {[%emt 0:00:34]} 40. Kh1 {[%emt 0:00:24]} Qa4 {[%emt 0:00:42]} 41. Re1 {[%emt 0:30:44]} Qc2 {[%emt 0:30:43]} 0-1

[Event "Cape Verde Championship 2019"]
[Site "Ribeira Brava"]
[Date "2019.12.05"]
[Round "1.3"]
[White "Monteiro, Antonio"]
[Black "Barros, Arlindo"]
[Result "*"]
[ECO "B23"]
[WhiteElo "1775"]
[BlackElo "1628"]
[Annotator "NA RC"]
[PlyCount "42"]
[EventDate "2019.12.05"]
[EventType "tourn"]
[SourceTitle "playchess.com"]
[Source "ChessBase"]
[SourceQuality "1"]
[TimeControl "40/5400+30:1800+30"]

1. e4 {[%emt 0:00:00]} c5 {[%emt 0:00:00]} 2. Nc3 {[%emt 0:00:00]} d6 {[%emt 0:00:04]} 3. f4 {[%emt 0:00:04]} Nf6 {[%emt 0:01:39]} 4. Nf3 {[%emt 0:00:34]} e6 {[%emt 0:01:40]} 5. Be2 {[%emt 0:04:26]} Be7 {[%emt 0:01:35]} 6. O-O {[%emt 0:00:49]} O-O {[%emt 0:00:41]} 7. d3 {[%emt 0:01:17]} Nc6 {[%emt 0:04:08]} 8. Kh1 {[%emt 0:05:25]} a6 {[%emt 0:04:20]} 9. Be3 {[%emt 1:21:55]} b5 {[%emt 0:07:08]} 10. a3 {[%emt 0:02:08]} Bb7 {[%emt 0:00:57]} 11. Qe1 {[%emt 0:12:44]} d5 {[%emt 0:02:42]} 12. e5 {[%emt 0:00:30]} Ng4 {[%emt 0:07:46]} 13. Bg1 {[%emt 0:06:08]} d4 {[%emt 0:00:56]} 14. Ne4 {[%emt 0:01:55]} Nh6 {[%emt 0:11:12]} 15. Nfg5 {[%emt 0:04:59]} Nf5 {[%emt 0:06:11]} 16. Bg4 {[%emt 0:05:19]} h6 {[%emt 0:08:27]} 17. Nc3 {[%emt 0:02:22]} Rc8 {[%emt 0:03:48]} 18. Bxf5 {[%emt 0:04:20]} exf5 {[%emt 0:00:25]} 19. Ne2 {[%emt 0:01:07]} Qd5 {[%emt 0:04:42]} 20. Qd2 {[%emt 0:06:08]} Nd8 {[%emt 0:01:41]} 21. Bf2 {[%emt 0:06:34]} Ne6 {[%emt 0:03:30]} *

[Event "Cape Verde Championship 2019"]
[Site "Ribeira Brava"]
[Date "2019.12.06"]
[Round "1.4"]
[White "Pereira, Eder Marcio"]
[Black "Neves, Diogo Alexandre"]
[Result "1/2-1/2"]
[ECO "E62"]
[WhiteElo "1798"]
[BlackElo "1539"]
[Annotator "NA RC"]
[PlyCount "67"]
[EventDate "2019.12.05"]
[EventType "tourn"]
[SourceTitle "playchess.com"]
[Source "ChessBase"]
[SourceQuality "1"]
[TimeControl "40/5400+30:1800+30"]

1. c4 {[%emt 0:00:43]} Nf6 {[%emt 0:00:19]} 2. g3 {[%emt 0:00:23]} g6 {[%emt 0:00:51]} 3. Bg2 {[%emt 0:00:18]} Bg7 {[%emt 0:00:26]} 4. Nc3 {[%emt 0:00:17]} O-O {[%emt 0:01:10]} 5. d4 {[%emt 0:04:40]} d6 {[%emt 0:02:52]} 6. Nf3 {[%emt 0:02:50]} c6 {[%emt 0:01:16]} 7. Bg5 {[%emt 0:01:10]} Qa5 {[%emt 0:12:15]} 8. Qd2 {[%emt 0:01:03]} e5 {[%emt 0:03:07]} 9. dxe5 {[%emt 0:21:28]} dxe5 {[%emt 0:00:48]} 10. Ne4 {[%emt 0:00:39]} Qxd2+ {[%emt 0:01:04]} 11. Nfxd2 {[%emt 0:00:22]} Nxe4 {[%emt 0:01:23]} 12. Nxe4 {[%emt 0:00:23]} f6 {[%emt 0:03:10]} 13. Be3 {[%emt 0:01:44]} Rd8 {[%emt 0:02:40]} 14. O-O {[%emt 0:05:28]} Na6 {[%emt 0:03:11]} 15. a3 {[%emt 0:07:22]} Be6 {[%emt 0:03:26]} 16. b3 {[%emt 0:04:50]} Rd7 {[%emt 0:04:49]} 17. Rad1 {[%emt 0:05:09]} Rad8 {[%emt 0:00:53]} 18. Rxd7 Rxd7 {[%emt 0:00:12]} 19. Bxa7 {[%emt 0:01:14]} b5 {[%emt 0:04:19]} 20. cxb5 {[%emt 0:05:24]} cxb5 {[%emt 0:01:51]} 21. Nc5 {[%emt 0:08:13]} Nxc5 {[%emt 0:01:06]} 22. Bxc5 {[%emt 0:00:14]} Bxb3 {[%emt 0:00:22]} 23. Bb4 {[%emt 0:04:39]} Bc4 {[%emt 0:02:06]} 24. Re1 {[%emt 0:02:03]} Bf8 {[%emt 0:00:43]} 25. e3 {[%emt 0:02:22]} Bxb4 {[%emt 0:01:41]} 26. axb4 {[%emt 0:00:16]} Rd2 {[%emt 0:00:09]} 27. Bf1 {[%emt 0:07:00]} Bxf1 {[%emt 0:03:36]} 28. Kxf1 {[%emt 0:00:10]} Rb2 {[%emt 0:00:08]} 29. Ra1 {[%emt 0:00:08]} Rxb4 {[%emt 0:00:24]} 30. Ra7 {[%emt 0:00:13]} e4 {[%emt 0:11:31]} 31. Rb7 {[%emt 0:00:49]} f5 {[%emt 0:00:32]} 32. h3 {[%emt 0:03:17]} h5 {[%emt 0:04:52]} 33. g4 {[%emt 0:01:57]} fxg4 {[%emt 0:12:13]} 34. hxg4 {[%emt 0:00:26]} 1/2-1/2

[Event "Cape Verde Championship 2019"]
[Site "Ribeira Brava"]
[Date "2019.12.06"]
[Round "2.2"]
[White "Barros, Arlindo"]
[Black "Pereira, Eder Marcio"]
[Result "1-0"]
[ECO "D46"]
[WhiteElo "1628"]
[BlackElo "1798"]
[Annotator "NA"]
[PlyCount "64"]
[EventDate "2019.12.05"]
[EventType "tourn"]
[SourceTitle "playchess.com"]
[Source "ChessBase"]
[SourceQuality "1"]
[TimeControl "40/5400+30:1800+30"]

1. d4 {[%emt 0:00:00]} d5 {[%emt 0:00:26]} 2. c4 {[%emt 0:00:00]} e6 {[%emt 0:02:03]} 3. Nf3 {[%emt 0:00:06]} Nf6 {[%emt 0:00:10]} 4. Nc3 {[%emt 0:00:37]} c6 {[%emt 0:01:44]} 5. e3 {[%emt 0:00:25]} Be7 {[%emt 0:00:47]} 6. Qc2 {[%emt 0:01:25]} O-O {[%emt 0:03:48]} 7. Bd3 {[%emt 0:00:09]} Nbd7 {[%emt 0:03:21]} 8. O-O {[%emt 0:00:13]} Re8 {[%emt 0:06:46]} 9. e4 {[%emt 0:00:43]} dxe4 {[%emt 0:00:16]} 10. Nxe4 {[%emt 0:00:17]} Nxe4 {[%emt 0:01:21]} 11. Bxe4 {[%emt 0:00:03]} Nf6 {[%emt 0:00:07]} 12. Bd3 {[%emt 0:00:25]} c5 {[%emt 0:01:41]} 13. Be3 {[%emt 0:01:33]} Qc7 {[%emt 0:00:28]} 14. Rad1 {[%emt 0:02:28]} b6 {[%emt 0:00:14]} 15. Ng5 {[%emt 0:09:57]} h6 {[%emt 0:04:41]} 16. Bh7+ {[%emt 0:05:59]} Kf8 {[%emt 0:00:46]} 17. Nxf7 {[%emt 0:16:51]} Nxh7 {[%emt 0:11:26]} 18. Qxh7 {[%emt 0:02:46]} Kxf7 {[%emt 0:00:23]} 19. Bxh6 {[%emt 0:00:21]} Bf6 {[%emt 0:00:11]} 20. Rd3 {[%emt 0:03:16]} Bb7 {[%emt 0:04:34]} 21. Rg3 {[%emt 0:02:15]} Rg8 {[%emt 0:00:28]} 22. Qg6+ {[%emt 0:02:09]} Kf8 {[%emt 0:00:15]} 23. Qxf6+ {[%emt 0:00:36]} Qf7 {[%emt 0:02:25]} 24. Qxf7+ {[%emt 0:01:34]} Kxf7 {[%emt 0:00:10]} 25. Be3 {[%emt 0:00:16]} cxd4 {[%emt 0:02:22]} 26. Bxd4 {[%emt 0:00:05]} Rad8 {[%emt 0:00:12]} 27. Bc3 {[%emt 0:00:25]} Rd7 {[%emt 0:02:11]} 28. b3 {[%emt 0:02:03]} g6 {[%emt 0:00:15]} 29. Re1 {[%emt 0:00:41]} Rgd8 {[%emt 0:06:19]} 30. Rge3 {[%emt 0:01:37]} Re8 {[%emt 0:01:23]} 31. Rh3 {[%emt 0:01:05]} e5 {[%emt 0:06:12]} 32. Rh7+ {[%emt 0:00:30]} Ke6 {[%emt 0:38:35]} 1-0

[Event "Cape Verde Championship 2019"]
[Site "Ribeira Brava"]
[Date "2019.12.06"]
[Round "2.3"]
[White "Monteiro, Antonio David Cabral"]
[Black "Monteiro, Antonio"]
[Result "1-0"]
[ECO "A51"]
[WhiteElo "1779"]
[BlackElo "1775"]
[Annotator "NA"]
[PlyCount "81"]
[EventDate "2019.12.05"]
[EventType "tourn"]
[SourceTitle "playchess.com"]
[Source "ChessBase"]
[SourceQuality "1"]
[TimeControl "40/5400+30:1800+30"]

1. d4 {[%emt 1:30:30]} Nf6 {[%emt 0:00:00]} 2. c4 {[%emt 0:00:00]} e5 {[%emt 0:00:03]} 3. d5 {[%emt 0:00:00]} Bc5 {[%emt 0:00:20]} 4. e3 {[%emt 0:00:00]} O-O {[%emt 0:02:14]} 5. Be2 {[%emt 0:00:00]} a5 {[%emt 0:01:44]} 6. a4 {[%emt 0:00:00]} Na6 {[%emt 0:01:05]} 7. Nc3 {[%emt 0:00:00]} d6 {[%emt 0:00:45]} 8. Bd2 {[%emt 0:00:00]} Bf5 {[%emt 0:01:08]} 9. g4 {[%emt 0:00:00]} Bg6 {[%emt 0:01:33]} 10. h4 {[%emt 0:00:00]} Nb4 {[%emt 0:00:28]} 11. Rc1 {[%emt 0:00:00]} Nd3+ {[%emt 0:01:41]} 12. Bxd3 {[%emt 0:00:00]} Bxd3 {[%emt 0:00:20]} 13. g5 {[%emt 0:00:00]} Nd7 {[%emt 0:05:21]} 14. b3 {[%emt 0:00:00]} f5 {[%emt 0:03:27]} 15. gxf6 {[%emt 0:00:00]} Qxf6 {[%emt 0:03:08]} 16. Rh2 {[%emt 0:00:00]} Qg6 {[%emt 0:04:48]} 17. Nce2 {[%emt 0:00:00]} Rf6 {[%emt 0:03:44]} 18. Rc3 {[%emt 0:00:00]} e4 {[%emt 0:01:45]} 19. Rc1 {[%emt 0:00:00]} Ne5 {[%emt 0:02:05]} 20. Bc3 {[%emt 0:00:00]} Nf3+ {[%emt 0:05:20]} 21. Nxf3 {[%emt 0:00:00]} Rxf3 {[%emt 0:00:55]} 22. Kd2 {[%emt 0:00:00]} c6 {[%emt 0:09:44]} 23. Qg1 {[%emt 0:00:00]} Bb4 {[%emt 0:04:18]} 24. Bxb4 {[%emt 0:01:58]} axb4 {[%emt 0:00:49]} 25. Qxg6 {[%emt 0:00:28]} hxg6 {[%emt 0:00:01]} 26. dxc6 {[%emt 0:00:54]} bxc6 {[%emt 0:00:26]} 27. Nf4 {[%emt 0:00:33]} Rf8 {[%emt 0:01:00]} 28. Nxd3 {[%emt 0:00:22]} exd3 {[%emt 0:00:34]} 29. Rf1 {[%emt 0:00:10]} R8f5 {[%emt 0:01:53]} 30. Kxd3 {[%emt 0:00:25]} Kf7 {[%emt 0:00:29]} 31. Ke2 {[%emt 0:00:29]} Ke6 {[%emt 0:01:00]} 32. Rg2 {[%emt 0:00:36]} Rf6 {[%emt 0:00:34]} 33. Rg3 {[%emt 0:01:08]} R3f5 {[%emt 0:43:48]} 34. f4 {[%emt 0:09:27]} d5 {[%emt 0:00:00]} 35. cxd5+ {[%emt 0:00:00]} Rxd5 {[%emt 0:00:00]} 36. Rg5 {[%emt 0:00:00]} Rd8 {[%emt 0:00:00]} 37. Rc5 {[%emt 0:00:00]} Rd6 {[%emt 0:00:00]} 38. e4 {[%emt 0:00:00]} Rd4 {[%emt 0:00:00]} 39. Rxc6+ {[%emt 0:00:00]} Kd7 {[%emt 0:00:00]} 40. Rxf6 {[%emt 0:00:00]} gxf6 {[%emt 0:00:00]} 41. Rd1 {[%emt 0:24:56]} 1-0

[Event "Cape Verde Championship 2019"]
[Site "Ribeira Brava"]
[Date "2019.12.06"]
[Round "2.4"]
[White "Barros, Luis"]
[Black "Fernandes, Luis De Pina"]
[Result "1-0"]
[ECO "E62"]
[WhiteElo "1603"]
[BlackElo "1641"]
[Annotator "NA"]
[PlyCount "110"]
[EventDate "2019.12.05"]
[EventType "tourn"]
[SourceTitle "playchess.com"]
[Source "ChessBase"]
[SourceQuality "1"]
[TimeControl "40/5400+30:1800+30"]

1. Nf3 {[%emt 0:00:00]} g6 {[%emt 0:00:00]} 2. c4 {[%emt 0:00:08]} Bg7 {[%emt 0:00:00]} 3. g3 {[%emt 0:01:13]} Nf6 {[%emt 0:00:13]} 4. d4 {[%emt 0:00:52]} d6 {[%emt 0:01:33]} 5. Nc3 {[%emt 0:00:41]} O-O {[%emt 0:00:11]} 6. Bg5 {[%emt 0:01:07]} Re8 {[%emt 0:01:47]} 7. Qd2 {[%emt 0:00:57]} c5 {[%emt 0:08:54]} 8. d5 {[%emt 0:02:05]} Bf5 {[%emt 0:07:49]} 9. Nh4 {[%emt 1:27:27]} Qc8 10. f3 {[%emt 0:00:00]} Bd7 {[%emt 0:05:13]} 11. O-O-O {[%emt 0:00:00]} a6 {[%emt 0:00:03]} 12. e4 {[%emt 0:00:00]} b5 {[%emt 0:00:31]} 13. Bd3 {[%emt 0:00:00]} bxc4 {[%emt 0:01:10]} 14. Bxc4 {[%emt 0:00:00]} Bb5 {[%emt 0:00:37]} 15. Nxb5 {[%emt 0:00:00]} axb5 {[%emt 0:00:02]} 16. Bxb5 {[%emt 0:00:00]} Nbd7 {[%emt 0:04:54]} 17. a4 {[%emt 0:00:00]} Qc7 {[%emt 0:00:16]} 18. Ng2 {[%emt 0:00:00]} Reb8 {[%emt 0:00:07]} 19. Bh6 {[%emt 0:00:00]} Nb6 {[%emt 0:00:38]} 20. Bxg7 {[%emt 0:00:00]} Kxg7 {[%emt 0:00:01]} 21. b3 {[%emt 0:00:00]} c4 {[%emt 0:03:14]} 22. Qc2 {[%emt 0:00:00]} Rc8 {[%emt 0:00:22]} 23. b4 {[%emt 0:00:00]} Rab8 {[%emt 0:10:43]} 24. Rd4 {[%emt 0:00:00]} e5 {[%emt 0:05:37]} 25. dxe6 {[%emt 0:00:00]} fxe6 {[%emt 0:00:14]} 26. Rhd1 {[%emt 0:00:00]} d5 {[%emt 0:01:03]} 27. Nf4 {[%emt 0:00:00]} Qe5 {[%emt 0:02:06]} 28. h4 {[%emt 0:00:00]} Na8 {[%emt 0:04:50]} 29. Ne2 {[%emt 0:00:00]} Nc7 {[%emt 0:00:33]} 30. f4 {[%emt 0:00:00]} Qh5 {[%emt 0:00:48]} 31. Nc3 {[%emt 0:00:00]} Nxb5 {[%emt 0:00:58]} 32. Nxb5 {[%emt 0:00:00]} Nxe4 {[%emt 0:00:54]} 33. Rxe4 {[%emt 0:00:00]} dxe4 {[%emt 0:00:48]} 34. Rd7+ {[%emt 0:00:00]} Kg8 {[%emt 0:02:54]} 35. Qxe4 {[%emt 0:00:00]} Qf5 {[%emt 0:00:31]} 36. Qd4 {[%emt 0:00:00]} Qf8 {[%emt 0:05:01]} 37. Qe5 {[%emt 0:00:00]} Re8 {[%emt 0:00:58]} 38. Nc7 {[%emt 0:00:00]} Re7 {[%emt 0:05:43]} 39. Nxe6 {[%emt 0:00:00]} Rxe6 {[%emt 0:18:03]} 40. Qxe6+ {[%emt 0:00:00]} Kh8 {[%emt 0:00:03]} 41. Qe5+ {[%emt 0:15:10]} Kg8 {[%emt 0:30:15]} 42. Qc7 {[%emt 0:02:51]} Re8 {[%emt 0:03:37]} 43. Qxc4+ {[%emt 0:02:07]} Kh8 {[%emt 0:00:32]} 44. Kd2 {[%emt 0:02:59]} Qf6 {[%emt 0:01:16]} 45. Qd4 {[%emt 0:00:46]} Qxd4+ {[%emt 0:00:54]} 46. Rxd4 {[%emt 0:00:08]} Kg7 {[%emt 0:00:24]} 47. b5 {[%emt 0:00:20]} Kf6 {[%emt 0:00:39]} 48. g4 {[%emt 0:00:51]} h5 {[%emt 0:00:18]} 49. Rd6+ {[%emt 0:01:08]} Kf7 {[%emt 0:00:26]} 50. g5 {[%emt 0:00:35]} Re4 {[%emt 0:00:07]} 51. Rf6+ {[%emt 0:00:15]} Ke7 {[%emt 0:01:43]} 52. a5 {[%emt 0:00:23]} Rd4+ {[%emt 0:00:16]} 53. Kc3 {[%emt 0:00:19]} Rd1 {[%emt 0:00:10]} 54. b6 {[%emt 0:00:32]} Rb1 {[%emt 0:00:34]} 55. Rxg6 {[%emt 0:00:15]} Ke8 {[%emt 0:06:57]} 1-0

[Event "Cape Verde Championship 2019"]
[Site "Ribeira Brava"]
[Date "2019.12.07"]
[Round "3.2"]
[White "Monteiro, Antonio"]
[Black "Barros, Luis"]
[Result "1-0"]
[ECO "C50"]
[WhiteElo "1775"]
[BlackElo "1603"]
[Annotator "NA RC"]
[PlyCount "29"]
[EventDate "2019.12.05"]
[EventType "tourn"]
[EventCountry "KAP"]
[SourceTitle "playchess.com"]
[Source "ChessBase"]
[SourceQuality "1"]
[TimeControl "40/5400+30:1800+30"]

1. e4 {[%emt 0:00:00]} e5 {[%emt 0:00:27]} 2. Nf3 {[%emt 0:00:00]} Nc6 {[%emt 0:01:31]} 3. Bc4 {[%emt 0:00:00]} h6 {[%emt 0:02:33]} 4. d4 {[%emt 0:01:25]} exd4 {[%emt 0:01:25]} 5. Nxd4 {[%emt 0:00:17]} Ne5 {[%emt 0:01:19]} 6. Bb3 {[%emt 0:02:01]} Nf6 {[%emt 0:01:44]} 7. f4 {[%emt 0:04:28]} Nxe4 {[%emt 0:08:08]} 8. O-O {[%emt 0:05:58]} Nc6 {[%emt 0:05:12]} 9. Nxc6 {[%emt 0:04:14]} bxc6 {[%emt 0:00:32]} 10. Re1 {[%emt 0:01:30]} f5 {[%emt 0:02:01]} 11. Qh5+ {[%emt 0:01:20]} Ke7 {[%emt 0:00:48]} 12. Qf7+ {[%emt 0:02:07]} Kd6 {[%emt 0:00:50]} 13. Rd1+ {[%emt 0:00:17]} Kc5 {[%emt 0:01:26]} 14. Be3+ {[%emt 0:00:39]} Kb5 {[%emt 0:01:29]} 15. Qc4+ {[%emt 0:00:40]} 1-0

[Event "Cape Verde Championship 2019"]
[Site "Ribeira Brava"]
[Date "2019.12.07"]
[Round "3.3"]
[White "Pereira, Eder Marcio"]
[Black "Monteiro, Antonio David Cabral"]
[Result "1-0"]
[ECO "A48"]
[WhiteElo "1798"]
[BlackElo "1779"]
[Annotator "NA RC"]
[PlyCount "91"]
[EventDate "2019.12.05"]
[EventType "tourn"]
[EventCountry "KAP"]
[SourceTitle "playchess.com"]
[Source "ChessBase"]
[SourceQuality "1"]
[TimeControl "40/5400+30:1800+30"]

1. d4 {[%emt 0:00:00]} Nf6 {[%emt 0:00:00]} 2. Bf4 {[%emt 0:00:04]} d6 {[%emt 0:00:38]} 3. e3 {[%emt 0:00:33]} g6 {[%emt 0:01:04]} 4. Nf3 {[%emt 0:00:15]} Bg7 {[%emt 0:00:30]} 5. Be2 {[%emt 0:00:28]} c6 {[%emt 0:00:30]} 6. h3 {[%emt 0:06:10]} Qa5+ {[%emt 0:01:54]} 7. c3 {[%emt 0:00:21]} Qb6 {[%emt 0:00:29]} 8. b3 {[%emt 0:08:11]} a5 {[%emt 0:03:08]} 9. Nbd2 {[%emt 0:00:24]} Nd5 {[%emt 0:02:05]} 10. Nc4 {[%emt 0:16:34]} Qc7 {[%emt 0:03:13]} 11. Qc1 {[%emt 0:07:42]} Nxf4 {[%emt 0:03:16]} 12. exf4 {[%emt 0:00:21]} Nd7 {[%emt 0:01:26]} 13. Qe3 {[%emt 0:00:53]} Nf6 {[%emt 0:02:43]} 14. Ng5 {[%emt 0:04:09]} Nd5 {[%emt 0:03:29]} 15. Qg3 {[%emt 0:05:47]} h6 {[%emt 0:03:08]} 16. Ne4 {[%emt 0:10:37]} b5 {[%emt 0:01:42]} 17. Ne3 {[%emt 0:01:33]} Nxe3 {[%emt 0:04:06]} 18. fxe3 {[%emt 0:02:01]} Bf5 {[%emt 0:08:28]} 19. Nd2 {[%emt 0:08:39]} d5 {[%emt 0:01:42]} 20. O-O {[%emt 0:02:48]} O-O {[%emt 0:01:09]} 21. Qf3 {[%emt 0:08:40]} h5 {[%emt 0:07:02]} 22. g4 {[%emt 0:00:22]} hxg4 {[%emt 0:00:28]} 23. hxg4 {[%emt 0:00:07]} Bd7 {[%emt 0:01:14]} 24. Kf2 {[%emt 0:00:53]} f5 {[%emt 0:03:46]} 25. gxf5 {[%emt 0:00:12]} Bxf5 {[%emt 0:00:32]} 26. c4 {[%emt 0:04:00]} bxc4 {[%emt 0:03:24]} 27. bxc4 {[%emt 0:00:13]} e6 {[%emt 0:01:27]} 28. cxd5 {[%emt 0:00:40]} cxd5 {[%emt 0:01:32]} 29. Rac1 {[%emt 0:00:14]} Qe7 {[%emt 0:00:58]} 30. Rc5 {[%emt 0:01:47]} Qh4+ {[%emt 0:04:45]} 31. Qg3 {[%emt 0:00:09]} Qxg3+ {[%emt 0:01:18]} 32. Kxg3 {[%emt 0:00:08]} Rfc8 {[%emt 0:02:32]} 33. Rfc1 {[%emt 0:00:25]} Rxc5 {[%emt 0:00:15]} 34. dxc5 {[%emt 0:02:30]} e5 {[%emt 0:04:06]} 35. Bg4 {[%emt 0:04:47]} exf4+ {[%emt 0:02:24]} 36. exf4 {[%emt 0:00:15]} Bxg4 {[%emt 0:00:48]} 37. Kxg4 {[%emt 0:00:13]} Rc8 {[%emt 0:01:54]} 38. c6 {[%emt 0:00:37]} Rc7 {[%emt 0:01:44]} 39. a4 {[%emt 0:01:28]} Bf8 {[%emt 0:00:50]} 40. Kg5 {[%emt 0:00:30]} Kg7 {[%emt 0:01:03]} 41. Nb3 {[%emt 0:30:34]} Be7+ {[%emt 0:30:30]} 42. Kg4 {[%emt 0:01:01]} Bb4 {[%emt 0:00:19]} 43. Nd4 {[%emt 0:00:20]} Kf6 {[%emt 0:00:47]} 44. Nb5 {[%emt 0:00:00]} Rc8 {[%emt 0:00:00]} 45. c7 {[%emt 0:00:00]} Bd2 {[%emt 0:00:00]} 46. Rc2 {[%emt 0:00:00]} 1-0